bitfinex-derivatives/quotes_ETHF0:USTF0_20240923
["timestamp","ask_amount","ask_price","bid_price","bid_amount"]
[1727094404552,1.1266,2650.3,2650.1,3.2078]
[1727094404754,1.1266,2650.3,2650.1,3.58519]
[1727094405149,1.50397,2650.3,2650.1,3.58519]
[1727094405541,1.50397,2650.3,2650.1,3.2078]
[1727094405542,1.50398,2650.3,2650.1,3.2078]
[1727094405744,1.1266,2650.3,2650.1,3.2078]
[1727094405945,1.1266,2650.3,2650.1,3.5852]
[1727094408153,1.1266,2650.3,2650.1,4.1578]
[1727094408460,1.1266,2650.3,2650.1,4.53519]
[1727094408651,1.1266,2650.3,2650.2,0.37738]
[1727094408960,1.1266,2650.3,2650.1,4.53519]
[1727094409952,1.50397,2650.3,2650.1,4.53519]
[1727094410353,1.1266,2650.3,2650.2,0.37738]
[1727094411459,0.108,2650.5,2650.4,0.37735]
[1727094411662,0.858,2650.5,2650.4,0.37735]
[1727094412068,1.23534,2650.5,2650.4,0.37735]
[1727094412255,0.858,2650.5,2650.4,0.37735]
[1727094413063,1.227,2650.5,2650.4,0.37735]
[1727094417566,1.227,2650.5,2650.2,0.37737]
[1727094417765,0.37736,2650.4,2650.2,0.37737]
[1727094417965,0.37737,2650.3,2650.2,0.37737]
[1727094418263,0.37736,2650.4,2650.2,0.37737]
[1727094418868,1.32736,2650.4,2650.2,0.37737]
[1727094419168,0.95,2650.4,2650.2,0.37737]
[1727094419866,0.95,2650.4,2650.3,0.37737]
[1727094420266,1.227,2650.5,2650.1,4.15129]
[1727094420567,1.227,2650.5,2650.3,0.37735]
[1727094420864,1.60434,2650.5,2650.3,0.37735]
[1727094421059,1.60434,2650.5,2650.3,0.37737]
[1727094421060,1.227,2650.5,2650.3,0.37737]
[1727094421267,1.49635,2650.5,2650.3,0.37737]
[1727094422970,1.119,2650.5,2650.4,0.37735]
[1727094423468,1.49634,2650.5,2650.4,0.37735]
[1727094423669,1.49634,2650.5,2650.3,0.37736]
[1727094425762,1.49634,2650.5,2650.4,0.37735]
[1727094426271,1.119,2650.5,2650.4,0.37735]
[1727094426478,0.37732,2650.7,2650.4,3.7728]
[1727094426660,0.3719,2650.6,2650.5,0.37734]
[1727094427565,0.74918,2650.9,2650.8,0.3773]
[1727094431360,0.74918,2650.9,2650.5,4.15115]
[1727094431361,0.74918,2650.9,2650.7,0.3773]
[1727094431676,0.74918,2650.9,2650.8,0.3773]
[1727094431677,0.3719,2650.9,2650.8,0.3773]
[1727094433778,0.3719,2650.9,2650.5,4.15115]
[1727094433779,0.74918,2650.9,2650.7,0.3773]
[1727094433976,0.7475,2651.0,2650.5,4.15115]
[1727094434272,1.1184,2651.0,2650.9,0.37728]
[1727094434662,0.7312,2651.0,2650.9,0.37728]
[1727094434866,0.7312,2651.0,2650.9,0.73678]
[1727094436764,0.3709,2651.0,2650.9,0.73678]
[1727094439873,0.4789,2651.0,2650.9,3.94458]
[1727094440469,0.108,2651.0,2650.9,5.83779]
[1727094440870,0.108,2651.0,2650.9,6.82651089]
[1727094441070,0.108,2651.0,2650.9,10.553]
[1727094441374,0.108,2651.0,2650.9,11.54172089]
[1727094441876,0.3976,2651.5,2651.4,0.37721]
[1727094442173,0.3976,2651.5,2651.4,3.58501]
[1727094445471,0.7622,2651.6,2651.5,0.3772]
[1727094446682,0.7622,2651.6,2651.5,1.3202]
[1727094446874,0.3856,2651.6,2651.5,4.528]
[1727094447784,0.3986,2651.7,2651.6,0.37718]
[1727094448685,0.77577,2651.7,2651.6,0.37718]
[1727094449281,0.3986,2651.7,2651.6,0.37718]
[1727094449482,0.77577,2651.7,2651.6,0.37718]
[1727094449986,0.37718,2651.6,2651.5,0.37719]
[1727094450478,4.7212,2651.6,2651.2,0.7565]
[1727094450680,0.7378,2651.5,2651.4,0.3772]
[1727094452286,0.37721,2651.4,2651.3,0.37723]
[1727094452484,0.3831,2651.4,2651.3,0.37723]
[1727094452790,0.3831,2651.4,2651.1,3.2078]
[1727094452991,0.74263,2651.3,2651.2,0.37724]
[1727094455188,0.3654,2651.3,2651.2,0.37724]
[1727094455383,0.74263,2651.3,2651.2,0.37724]
[1727094455801,0.3654,2651.3,2651.2,0.37724]
[1727094456086,0.74263,2651.3,2651.2,0.37724]
[1727094456494,0.3831,2651.4,2651.3,0.37723]
[1727094456680,0.7702,2651.4,2651.3,0.37723]
[1727094457482,1.14741,2651.4,2651.3,0.37723]
[1727094457984,0.7702,2651.4,2651.3,0.37723]
[1727094458593,1.14741,2651.4,2651.3,0.37723]
[1727094459294,0.7702,2651.4,2651.3,0.37723]
[1727094459591,1.14741,2651.4,2651.3,0.37723]
[1727094459885,0.7702,2651.4,2651.3,0.37723]
[1727094461195,0.7702,2651.4,2651.3,3.58503]
[1727094462293,1.14741,2651.4,2651.3,3.58503]
[1727094462889,0.7702,2651.4,2651.3,3.58503]
[1727094463095,1.14741,2651.4,2651.3,3.58503]
[1727094463791,0.7702,2651.4,2651.3,3.58503]
[1727094463991,1.14741,2651.4,2651.3,3.58503]
[1727094464597,0.7702,2651.4,2651.3,3.58503]
[1727094465395,0.7702,2651.4,2651.3,0.37723]
[1727094466094,0.37725,2651.2,2651.1,0.37724]
[1727094466292,0.95,2651.2,2651.0,3.2078]
[1727094466515,0.75265,2651.1,2651.0,3.2078]
[1727094467297,0.75265,2651.1,2651.0,3.58507]
[1727094468290,0.75265,2651.1,2651.0,3.2078]
[1727094470893,0.86065,2651.1,2651.0,3.2078]
[1727094471292,0.37727,2651.0,2650.9,0.95]
[1727094471490,0.37728,2650.9,2650.7,1.318]
[1727094471686,0.3773,2650.8,2650.5,0.37733]
[1727094471896,0.37735,2650.5,2650.4,0.37735]
[1727094472288,0.37735,2650.5,2650.4,0.37734]
[1727094472702,0.37734,2650.6,2650.5,0.37733]
[1727094473301,0.94335,2650.5,2650.1,0.98713409]
[1727094473599,0.37738,2650.3,2650.1,3.58519]
[1727094473801,0.95,2650.4,2650.1,3.2078]
[1727094473802,0.37738,2650.2,2650.1,3.2078]
[1727094474112,0.37736,2650.4,2650.2,0.37738]
[1727094474292,1.89334,2650.6,2650.1,4.1578]
[1727094474493,0.37734,2650.5,2650.3,0.37737]
[1727094475099,1.32733,2650.6,2650.4,0.37735]
[1727094475401,0.37734,2650.5,2650.4,1.32735]
[1727094475592,0.37734,2650.6,2650.4,1.32735]
[1727094475790,0.37734,2650.5,2650.3,0.76726]
[1727094476002,1.3195,2650.7,2650.2,0.95]
[1727094476190,0.37734,2650.5,2650.3,0.37736]
[1727094476397,0.37733,2650.6,2650.2,0.95]
[1727094476800,0.37733,2650.6,2650.4,0.37735]
[1727094479397,2.26949,2650.7,2650.3,0.73747]
[1727094479606,2.26949,2650.7,2650.3,0.37737]
[1727094479607,0.37735,2650.5,2650.3,0.37737]
[1727094479905,2.26949,2650.7,2650.4,0.37735]
[1727094480406,0.37734,2650.6,2650.4,0.37735]
[1727094481099,0.3762,2650.7,2650.2,0.95]
[1727094481304,0.3762,2650.7,2650.4,0.37734]
[1727094481618,2.26949,2650.7,2650.2,0.95]
[1727094481898,0.95,2650.5,2650.3,0.37736]
[1727094482200,0.37735,2650.4,2650.3,0.37737]
[1727094482505,1.32735,2650.5,2650.3,0.37737]
[1727094482699,0.37735,2650.4,2650.2,3.2078]
[1727094483009,0.37739,2650.2,2650.0,0.7673]
[1727094483193,0.77247,2650.3,2650.1,3.58519]
[1727094483597,0.3951,2650.3,2650.1,3.58519]
[1727094483897,0.77247,2650.3,2650.1,3.58519]
[1727094484905,0.3843,2650.2,2650.1,3.58519]
[1727094485301,1.71168,2650.2,2650.0,3.9751]
[1727094485505,1.71168,2650.2,2650.0,3.5977]
[1727094485710,1.71168,2650.2,2650.1,0.3774]
[1727094486002,1.3343,2650.2,2650.1,0.3774]
[1727094486207,0.3843,2650.2,2650.1,0.3774]
[1727094487909,0.3951,2650.3,2650.2,0.37738]
[1727094488501,0.77247,2650.3,2650.2,0.37738]
[1727094490698,0.3951,2650.3,2650.1,0.37739]
[1727094490902,0.77248,2650.3,2650.1,0.37739]
[1727094495012,0.3951,2650.3,2650.1,0.37739]
[1727094495215,0.77248,2650.3,2650.1,0.37739]
[1727094495415,0.37738,2650.2,2650.0,3.5977]
[1727094495714,0.37738,2650.2,2650.1,0.3774]
[1727094496626,0.3951,2650.3,2650.1,0.3774]
[1727094496917,0.37738,2650.2,2650.0,3.5977]
[1727094497116,0.37738,2650.2,2650.1,0.37739]
[1727094497613,0.3774,2650.1,2650.0,3.5977]
[1727094497814,0.386,2650.1,2649.9,0.37741]
[1727094498016,0.386,2650.1,2649.7,0.74945]
[1727094498017,0.94353,2650.0,2649.7,0.74945]
[1727094498211,2.25788,2649.9,2649.5,3.5681]
[1727094498409,2.25788,2649.9,2649.5,3.94558]
[1727094498410,0.37746,2649.7,2649.5,3.94558]
[1727094498611,1.32745,2649.8,2649.6,0.37747]
[1727094498812,1.30788,2649.9,2649.6,0.37747]
[1727094498813,0.386,2649.7,2649.6,0.37747]
[1727094499818,0.74173,2649.9,2649.7,0.37745]
[1727094500119,0.7466,2649.9,2649.7,0.37745]
[1727094500315,1.12404,2649.9,2649.7,0.37745]
[1727094501514,1.12404,2649.9,2649.8,0.3889]
[1727094503223,1.12402,2649.9,2649.8,0.3889]
[1727094506022,0.7466,2649.9,2649.8,0.37744]
[1727094506415,1.12402,2649.9,2649.8,0.37744]
[1727094508810,1.12402,2649.9,2649.8,3.58524]
[1727094509519,0.7466,2649.9,2649.8,3.58524]
[1727094510025,10.8518,2650.4,2650.3,0.37737]
[1727094510026,0.108,2650.4,2650.3,0.37737]
[1727094510223,0.108,2650.4,2650.3,8.30797]
[1727094510423,0.108,2650.4,2650.3,14.30797]
[1727094511122,0.108,2650.4,2650.3,15.29419233]
[1727094511323,4.127,2650.9,2650.8,0.3773]
[1727094511627,4.127,2650.9,2650.8,3.5851]
[1727094511825,4.127,2650.9,2650.8,7.3571]
[1727094512015,4.127,2650.9,2650.8,3.9828]
[1727094512215,4.127,2650.9,2650.8,4.3557]
[1727094512430,0.3791,2651.2,2650.9,0.37727]
[1727094512623,0.3791,2651.2,2651.0,0.37727]
[1727094512821,0.3791,2651.2,2651.0,0.37726]
[1727094513018,3.585,2651.5,2651.1,0.37725]
[1727094513327,3.5869,2651.5,2651.0,0.37726]
[1727094513524,3.9641,2651.5,2651.0,0.37726]
[1727094513727,3.9641,2651.5,2651.1,0.37725]
[1727094513926,3.5869,2651.5,2651.1,0.37725]
[1727094514923,3.9641,2651.5,2651.0,0.37726]
[1727094515318,3.5869,2651.5,2651.1,0.37725]
[1727094516029,3.9641,2651.5,2651.0,0.37726]
[1727094516326,3.5869,2651.5,2651.1,0.37725]
[1727094516525,3.9641,2651.5,2651.0,0.37726]
[1727094517732,3.5869,2651.5,2651.1,0.37725]
[1727094518229,3.5869,2651.5,2651.2,0.37723]
[1727094518428,0.3791,2651.5,2651.2,0.37723]
[1727094518630,0.3791,2651.5,2651.3,0.37722]
[1727094518824,0.3791,2651.5,2651.4,0.37721]
[1727094519135,0.3791,2651.5,2651.4,3.58501]
[1727094520022,0.7694,2651.7,2651.5,0.3772]
[1727094520232,1.138,2651.7,2651.5,0.3772]
[1727094524033,1.138,2651.7,2651.6,0.37718]
[1727094524534,3.2078,2652.1,2651.8,0.37715]
[1727094524535,0.37713,2652.0,2651.8,0.37715]
[1727094524826,1.136,2652.0,2651.8,0.37715]
[1727094525430,1.51313,2652.0,2651.8,0.37715]
[1727094525628,1.136,2652.0,2651.8,0.37715]
[1727094526335,1.51313,2652.0,2651.8,0.37715]
[1727094526525,1.136,2652.0,2651.9,0.37714]
[1727094526920,1.136,2652.0,2651.9,1.32714]
[1727094527728,0.37708,2652.4,2651.9,0.95]
[1727094528028,0.37709,2652.3,2652.1,0.3771]
[1727094528426,0.3771,2652.2,2652.0,3.58491]
[1727094528734,0.37709,2652.3,2652.1,0.37711]
[1727094529935,0.7666,2652.4,2652.1,0.3771]
[1727094530132,0.37709,2652.3,2652.1,0.3771]
[1727094530531,0.7666,2652.4,2652.1,0.3771]
[1727094530728,0.7666,2652.4,2652.3,0.37708]
[1727094531435,0.7666,2652.4,2652.3,1.32708]
[1727094531633,0.7666,2652.4,2652.3,4.53488]
[1727094532428,0.7666,2652.4,2652.3,3.58488]
[1727094533537,0.7666,2652.4,2652.3,4.53488]
[1727094533840,0.7666,2652.4,2652.3,3.58488]
[1727094534029,0.7666,2652.4,2652.3,0.37708]
[1727094534431,0.7666,2652.4,2651.9,0.3867]
[1727094534629,0.37709,2652.3,2651.8,5.86557]
[1727094534834,0.376,2652.6,2652.1,0.95]
[1727094535144,0.7412,2652.5,2652.4,0.37707]
[1727094536736,0.7412,2652.5,2652.4,1.32707]
[1727094538254,7.3348,2653.1,2652.4,7.9282]
[1727094538547,3.04769627,2653.7,2653.1,0.94243]
[1727094538548,0.37689,2653.7,2653.1,0.94243]
[1727094538730,0.088,2653.8,2653.5,1.32691]
[1727094538731,0.7735,2653.6,2653.5,1.32691]
[1727094538935,0.7735,2653.6,2653.3,3.2078]
[1727094539141,3.2078,2654.2,2653.3,4.15014]
[1727094539332,1.71558,2654.1,2653.7,0.95]
[1727094539646,0.37687,2653.8,2653.7,0.95]
[1727094539838,0.37688,2653.7,2653.6,4.1578]
[1727094540033,0.37688,2653.7,2653.6,3.2078]
[1727094540344,0.37692,2653.5,2653.1,6.19746653]
[1727094540542,0.37691,2653.5,2653.1,6.19746653]
[1727094540738,0.7735,2653.4,2653.1,3.2078]
[1727094540936,0.37695,2653.2,2653.1,3.2078]
[1727094542041,0.3803,2653.3,2653.1,6.9766]
[1727094542239,0.7735,2653.4,2653.2,2.06]
[1727094542438,1.15043,2653.4,2653.2,2.43695]
[1727094542632,1.15043,2653.4,2653.1,3.58476]
[1727094542633,0.37694,2653.3,2653.1,3.58476]
[1727094543146,6.20575,2653.2,2653.1,3.2078]
[1727094543335,6.20575,2653.2,2652.5,0.7402]
[1727094543336,1.71585,2653.4,2652.9,0.37699]
[1727094543535,1.71585,2653.4,2653.0,0.37697]
[1727094543536,0.7735,2653.4,2653.0,0.37697]
[1727094543737,0.7735,2653.4,2652.9,0.37699]
[1727094543942,0.37697,2653.2,2652.9,0.37699]
[1727094544844,0.37695,2653.3,2652.8,3.2078]
[1727094545044,0.7735,2653.4,2652.9,2.43699]
[1727094545241,0.37697,2653.1,2652.9,0.37699]
[1727094545438,0.3983,2653.0,2652.9,0.37699]
[1727094546145,0.77528,2653.0,2652.8,0.377]
[1727094546540,0.77529,2653.0,2652.8,0.377]
[1727094546742,0.37702,2652.8,2652.6,0.37703]
[1727094547040,0.3983,2653.0,2652.5,6.008]
[1727094547441,0.3983,2653.0,2652.5,6.95063]
[1727094547638,0.3983,2653.0,2652.9,0.377]
[1727094548051,0.3983,2653.0,2652.8,3.2078]
[1727094548444,0.3983,2653.0,2652.9,0.377]
[1727094549245,0.37696,2653.2,2653.1,0.37696]
[1727094549651,0.75605,2653.3,2652.9,0.3871]
[1727094549841,0.37696,2653.2,2653.1,0.37696]
[1727094551348,0.37697,2653.1,2653.0,0.37697]
[1727094551546,0.37697,2653.1,2652.8,3.2078]
[1727094551547,0.94239,2653.2,2652.8,3.5848]
[1727094551746,0.377,2652.9,2652.8,3.5848]
[1727094552051,0.3892,2653.1,2652.8,0.377]
[1727094552355,0.377,2652.9,2652.7,0.37702]
[1727094552545,0.377,2652.9,2652.8,0.37701]
[1727094552854,0.377,2652.9,2652.5,5.6324]
[1727094553150,0.377,2652.9,2652.8,3.2078]
[1727094553447,0.37699,2653.0,2652.8,3.5848]
[1727094553648,0.3791,2653.3,2652.8,3.5848]
[1727094553649,1.32148,2653.3,2653.0,0.37698]
[1727094554153,0.37696,2653.2,2653.0,0.37698]
[1727094554739,1.32148,2653.3,2653.0,0.37698]
[1727094555342,0.37697,2653.1,2653.0,0.37698]
[1727094555857,0.94239,2653.2,2652.9,0.37699]
[1727094556058,0.37699,2653.0,2652.8,3.5848]
[1727094556350,0.3942,2652.9,2652.8,3.5848]
[1727094556556,0.94254,2652.8,2652.5,3.58485]
[1727094556750,1.1572,2652.9,2652.7,0.37702]
[1727094556949,0.37703,2652.7,2652.6,0.37703]
[1727094557650,0.37704,2652.6,2652.5,3.58485]
[1727094558953,0.94254,2652.8,2652.6,0.37704]
[1727094558954,0.37703,2652.7,2652.6,0.37704]
[1727094559655,0.37704,2652.6,2652.5,3.2078]
[1727094560149,0.37704,2652.6,2652.5,3.58485]
[1727094562053,0.37703,2652.7,2652.6,0.37704]
[1727094564147,0.37704,2652.6,2652.5,5.64484]
[1727094564548,0.37704,2652.6,2652.5,3.2078]
[1727094564743,0.37704,2652.6,2652.2,1.33895]
[1727094564744,0.37708,2652.4,2652.2,0.77329]
[1727094564949,0.3911,2652.3,2652.2,0.37709]
[1727094565246,0.7837,2652.3,2652.2,3.2078]
[1727094565446,0.7837,2652.3,2652.2,3.5849]
[1727094566352,1.72641,2652.3,2651.9,0.3684]
[1727094566558,0.37712,2652.1,2652.0,0.37712]
[1727094567153,0.75371,2652.2,2652.0,0.37712]
[1727094567355,0.37711,2652.1,2652.0,0.37712]
[1727094568352,0.3766,2652.2,2652.1,0.37711]
[1727094568353,0.75371,2652.2,2652.1,0.37711]
[1727094568744,0.37711,2652.1,2652.0,2.43711]
[1727094572954,0.37711,2652.1,2652.0,2.06]
[1727094573151,0.37714,2651.9,2651.7,0.3897]
[1727094573351,0.37722,2651.4,2651.2,0.98603739]
[1727094573657,0.37722,2651.4,2651.3,3.58501]
[1727094573855,0.3772,2651.5,2651.4,0.3772]
[1727094574065,0.37719,2651.6,2651.5,0.37719]
[1727094574255,0.37719,2651.6,2651.4,0.3772]
[1727094574457,0.376,2651.7,2651.4,0.3772]
[1727094574956,0.376,2651.7,2651.6,0.37718]
[1727094574957,0.75317,2651.7,2651.6,0.37718]
[1727094575152,0.7821,2651.8,2651.7,0.37717]
[1727094575357,0.7821,2651.8,2651.7,2.43717]
[1727094576362,1.15925,2651.8,2651.7,2.43717]
[1727094576858,0.37717,2651.7,2651.6,3.2078]
[1727094577064,1.15926,2651.8,2651.7,0.37717]
[1727094577953,0.7821,2651.8,2651.7,0.37717]
[1727094578356,0.37714,2652.0,2651.9,0.37714]
[1727094578657,0.37713,2652.0,2651.9,0.37713]
[1727094578960,1.52132,2652.1,2652.0,0.37713]
[1727094579664,0.3771,2652.2,2651.9,5.2678]
[1727094579858,0.3771,2652.2,2652.1,0.3771]
[1727094580957,1.7109,2652.4,2652.3,0.37708]
[1727094580958,1.14528,2652.4,2652.3,0.37708]
[1727094581149,1.14528,2652.4,2652.3,2.43708]
[1727094582366,0.7682,2652.4,2652.3,2.43708]
[1727094583063,1.14527,2652.4,2652.3,2.43708]
[1727094586573,1.14527,2652.4,2652.3,0.37708]
[1727094586864,0.94262,2652.6,2652.3,0.37708]
[1727094586865,0.37704,2652.6,2652.5,0.37705]
[1727094587370,0.37706,2652.5,2652.4,0.37706]
[1727094587664,0.76596,2652.5,2652.4,0.37706]
[1727094587854,0.37708,2652.3,2652.2,3.58489]
[1727094588060,0.37708,2652.3,2652.2,0.3771]
[1727094588871,0.3771,2652.2,2652.1,0.3771]
[1727094589167,0.3771,2652.3,2652.2,0.37709]
[1727094589364,0.7637,2652.3,2652.2,0.37709]
[1727094589561,0.3771,2652.2,2652.1,0.3771]
[1727094591365,0.3771,2652.3,2652.2,0.37709]
[1727094592968,0.37711,2652.2,2652.1,0.3771]
[1727094593173,0.73861,2652.2,2652.1,0.3771]
[1727094593566,0.3615,2652.2,2652.1,0.3771]
[1727094595472,0.37709,2652.3,2652.2,0.3771]
[1727094596969,4.127,2653.1,2652.2,6.2075]
[1727094597170,1.5292,2652.9,2652.8,2.06]
[1727094597369,1.5292,2652.9,2652.4,0.37706]
[1727094597370,0.37705,2652.6,2652.4,0.37706]
[1727094597880,0.388,2652.5,2652.4,0.37706]
[1727094598370,0.388,2652.5,2652.4,0.37707]
[1727094599769,0.388,2652.5,2652.3,5.64488]
[1727094599974,0.3669,2652.4,2652.3,5.64488]
[1727094600567,0.7552,2652.4,2652.3,5.64488]
[1727094600963,0.7552,2652.4,2652.3,3.2078]
[1727094601165,1.13227,2652.4,2652.3,3.2078]
[1727094601370,1.13227,2652.4,2652.0,3.2078]
[1727094601371,4.5256,2652.4,2652.0,3.2078]
[1727094601573,0.7552,2652.4,2652.0,3.2078]
[1727094601874,0.3771,2652.2,2652.0,3.2078]
[1727094602372,0.3952,2652.1,2652.0,3.2078]
[1727094602986,0.3952,2652.1,2652.0,4.19383739]
[1727094603774,0.77231,2652.1,2652.0,4.19383739]
[1727094603977,0.77231,2652.1,2652.0,3.2078]
[1727094604179,0.37713,2652.0,2651.9,4.19383739]
[1727094604480,0.37715,2651.8,2651.7,3.2078]
[1727094604683,0.37715,2651.8,2651.6,3.2078]
[1727094604878,0.3677,2651.7,2651.6,3.2078]
[1727094605579,0.3677,2651.7,2651.6,3.58498]
[1727094606787,0.3677,2651.7,2651.6,5.64498]
[1727094606975,0.3791,2651.9,2651.8,0.37715]
[1727094607173,0.3946,2652.1,2652.0,0.37713]
[1727094607584,1.16289,2652.3,2652.2,0.3771]
[1727094607881,1.1804,2652.3,2652.2,3.5849]
[1727094608580,1.55748,2652.3,2652.2,3.2078]
[1727094608785,0.37711,2652.1,2652.0,0.98703974]
[1727094609085,0.37715,2651.8,2651.7,3.2078]
[1727094609479,1.52075,2651.8,2651.7,3.2078]
[1727094610987,5.29195,2651.8,2651.7,3.2078]
[1727094611491,5.29195,2651.8,2651.7,3.58497]
[1727094611673,0.37718,2651.6,2651.5,0.37719]
[1727094611880,4.9148,2651.8,2651.3,2.06]
[1727094611881,0.3772,2651.5,2651.3,2.06]
[1727094612079,2.08649,2651.8,2651.3,2.06]
[1727094612080,0.37721,2651.4,2651.3,0.37722]
[1727094612275,0.37721,2651.5,2651.3,0.37722]
[1727094612582,4.14649,2651.8,2651.4,0.3772]
[1727094612781,0.3772,2651.5,2651.4,0.3772]
[1727094612983,0.37719,2651.6,2651.4,0.3772]
[1727094613179,1.1436,2651.8,2651.5,0.3772]
[1727094613383,0.37719,2651.6,2651.4,0.3772]
[1727094613584,0.37719,2651.6,2651.2,3.2078]
[1727094613585,0.37719,2651.6,2651.5,0.3772]
[1727094613787,0.37719,2651.6,2651.4,0.3772]
[1727094613981,0.37718,2651.7,2651.5,0.3772]
[1727094614180,0.37718,2651.7,2651.5,0.37719]
[1727094614581,1.1436,2651.8,2651.6,0.37718]
[1727094614787,1.1436,2651.8,2651.7,0.37717]
[1727094615184,1.52075,2651.8,2651.6,0.37717]
[1727094615387,1.52075,2651.8,2651.7,0.37717]
[1727094616689,1.1436,2651.8,2651.7,0.37717]
[1727094617688,1.52075,2651.8,2651.7,0.37717]
[1727094618594,0.7559,2651.8,2651.7,0.37717]
[1727094618795,0.3657,2652.1,2652.0,0.37713]
[1727094618991,0.4792,2652.2,2652.1,0.37711]
[1727094623093,0.8563,2652.2,2652.1,0.37711]
[1727094623402,0.4792,2652.2,2652.1,0.37711]
[1727094624101,0.8563,2652.2,2652.1,0.37711]
[1727094624306,0.4792,2652.2,2652.1,0.37711]
[1727094626306,0.8563,2652.2,2652.1,0.37711]
[1727094626713,0.8563,2652.2,2651.6,4.19483974]
[1727094626714,2.26277,2652.0,2651.6,4.19483974]
[1727094627003,7.4574,2652.2,2651.2,0.37723]
[1727094627004,0.3772,2651.5,2651.2,0.37723]
[1727094627199,0.3772,2651.5,2650.8,2.46774087]
[1727094627200,0.94307,2651.3,2650.8,2.46774087]
[1727094627401,0.3773,2650.8,2650.7,0.3776]
[1727094627601,0.94314,2651.1,2650.6,3.95792]
[1727094627602,0.37729,2650.9,2650.6,3.95792]
[1727094627897,5.2678,2651.3,2650.8,0.3773]
[1727094627898,0.37728,2651.0,2650.8,0.3773]
[1727094628305,0.37728,2651.0,2650.6,3.5806]
[1727094628306,0.37728,2651.0,2650.7,0.3773]
[1727094628817,0.37728,2651.0,2650.8,0.3773]
[1727094630108,0.37724,2651.2,2651.0,0.37726]
[1727094630303,1.1717,2651.4,2650.9,5.2678]
[1727094630610,1.1717,2651.4,2651.1,0.37724]
[1727094630611,0.37723,2651.3,2651.1,0.37724]
[1727094630913,0.37724,2651.2,2651.0,0.37726]
[1727094631109,0.37724,2651.3,2651.1,0.37725]
[1727094631813,0.37723,2651.3,2650.9,3.58508]
[1727094632321,0.37727,2651.0,2650.9,3.2078]
[1727094633999,0.37725,2651.2,2651.0,0.37726]
[1727094634215,0.37723,2651.3,2650.9,5.2678]
[1727094634410,0.37723,2651.3,2651.1,0.37724]
[1727094634602,0.37724,2651.2,2650.9,5.2678]
[1727094634800,0.37724,2651.2,2651.0,0.37726]
[1727094635406,0.37724,2651.2,2651.1,0.37725]
[1727094635804,0.37725,2651.2,2651.1,0.37725]
[1727094636004,0.37725,2651.2,2651.0,0.37726]
[1727094636608,0.37725,2651.1,2651.0,0.37726]
[1727094636810,0.37724,2651.2,2651.1,0.37725]
[1727094638328,0.37723,2651.3,2651.2,0.37723]
[1727094638611,0.37724,2651.3,2651.1,0.37724]
[1727094638915,0.37724,2651.2,2651.1,0.37724]
[1727094641616,0.37725,2651.1,2651.0,3.58506]
[1727094641911,1.32039,2651.1,2651.0,3.2078]
[1727094646815,0.37724,2651.2,2651.1,0.37724]
[1727094647209,1.26631,2651.4,2651.2,0.37724]
[1727094647814,0.8891,2651.4,2651.2,0.37724]
[1727094648013,0.108,2651.4,2651.3,4.5281]
[1727094648219,0.108,2651.4,2651.3,5.47117]
[1727094648408,0.108,2651.4,2651.3,15.24317]
[1727094648915,0.108,2651.4,2651.3,17.30317]
[1727094650916,0.108,2651.4,2651.3,11.30317]
[1727094652719,0.108,2651.4,2651.3,17.30317]
[1727094653423,0.108,2651.4,2651.3,11.30317]
[1727094653722,0.108,2651.4,2651.3,17.30317]
[1727094653921,0.108,2651.4,2651.3,11.30317]
[1727094654126,0.108,2651.4,2651.3,17.30317]
[1727094654724,0.108,2651.4,2651.3,10.3601]
[1727094655428,0.3828,2651.8,2651.7,0.37717]
[1727094655619,0.7658,2652.0,2651.9,0.37714]
[1727094656121,0.3925,2652.1,2652.0,0.37713]
[1727094656314,0.3925,2652.1,2652.0,3.58493]
[1727094658020,0.3862,2652.4,2652.3,0.37708]
[1727094658528,0.3862,2652.4,2652.3,3.58488]
[1727094659418,0.396,2652.5,2652.4,0.37707]
[1727094662022,4.54346,2652.5,2652.3,3.2078]
[1727094662221,4.54346,2652.5,2652.3,3.58488]
[1727094662222,0.77306,2652.5,2652.3,3.58488]
[1727094662730,0.396,2652.5,2652.4,0.37707]
[1727094662934,0.396,2652.5,2652.3,3.2078]
[1727094662935,0.396,2652.5,2652.3,3.58488]
[1727094663123,0.77307,2652.5,2652.3,3.2078]
[1727094663319,0.77307,2652.5,2652.3,3.58488]
[1727094664017,0.77307,2652.5,2651.9,0.19313215]
[1727094664018,5.6638,2652.5,2651.9,3.2078]
[1727094664222,3.00276,2652.2,2651.9,3.2078]
[1727094664424,3.6038,2652.5,2651.5,1.39016]
[1727094664425,0.37714,2651.9,2651.6,0.37717]
[1727094664634,0.76776,2651.8,2651.6,0.37717]
[1727094664823,0.3906,2651.8,2651.7,0.37717]
[1727094667434,0.3906,2651.8,2651.7,1.3201]
[1727094667826,0.3905,2652.1,2652.0,1.31995]
[1727094668132,0.3905,2652.1,2652.0,3.58493]
[1727094670332,0.3905,2652.1,2652.0,0.37713]
[1727094671837,0.3905,2652.1,2652.0,3.58493]
[1727094673736,0.3905,2652.1,2652.0,4.52775]
[1727094674137,0.3905,2652.1,2652.0,3.58493]
[1727094676339,0.37713,2652.0,2651.8,0.37714]